bitfinex-derivatives/quotes_BTCF0:USTF0_20210111
["timestamp","ask_amount","ask_price","bid_price","bid_amount"]
[1610395920702,0.0529,31640.0,31639.0,4.64362608]
[1610395922705,0.0529,31640.0,31639.0,4.74320608]
[1610395922906,0.0529,31640.0,31639.0,4.60688]
[1610395924509,0.0529,31640.0,31639.0,4.74320608]
[1610395924707,0.0529,31640.0,31639.0,5.74320608]
[1610395927213,1.0,31666.0,31639.0,1.23590608]
[1610395927414,1.0,31666.0,31654.0,4.9892]
[1610395927612,1.0,31666.0,31654.0,5.06091]
[1610395928023,0.8952,31666.0,31654.0,5.06091]
[1610395928410,0.0931,31728.0,31654.0,0.07171]
[1610395928609,0.0931,31728.0,31718.0,0.13632608]
[1610395928810,0.0958,31727.0,31718.0,0.13632608]
[1610395929014,0.19449,31727.0,31718.0,0.13632608]
[1610395929611,0.19449,31727.0,31713.0,4.197]
[1610395929810,0.09869,31727.0,31713.0,4.197]
[1610395930412,1.09869,31727.0,31713.0,4.197]
[1610395930611,1.09869,31727.0,31726.0,0.13632608]
[1610395931412,1.09869,31727.0,31726.0,0.7253]
[1610395932413,0.44879389,31790.0,31726.0,0.7253]
[1610395932613,0.44879389,31790.0,31720.0,0.06934]
[1610395932814,0.45107338,31798.0,31746.0,4.6313]
[1610395933014,0.45107338,31798.0,31746.0,4.72147]
[1610395933514,0.095,31801.0,31746.0,4.72147]
[1610395933714,0.452221,31804.0,31746.0,4.72147]
[1610395934119,0.45383925,31811.0,31746.0,4.72147]
[1610395934316,0.45383925,31811.0,31746.0,0.09017]
[1610395934515,0.45383925,31811.0,31795.0,0.13632608]
[1610395934516,0.13632608,31797.0,31795.0,0.13632608]
[1610395934716,0.13632608,31797.0,31766.0,4.4257]
[1610395934916,0.23658608,31797.0,31766.0,4.4257]
[1610395935315,0.0954,31796.0,31766.0,4.4257]
[1610395935516,0.32978608,31797.0,31766.0,4.4257]
[1610395935517,0.23658608,31797.0,31766.0,4.42378153]
[1610395935715,0.23658608,31797.0,31766.0,4.50704153]
[1610395935916,0.23658608,31797.0,31766.0,0.08326]
[1610395936515,0.0942,31796.0,31772.0,0.13632608]
[1610395936721,0.10026,31797.0,31772.0,0.13632608]
[1610395937320,0.10026,31797.0,31770.0,4.6921]
[1610395937321,0.10026,31797.0,31770.0,4.67238813]
[1610395938317,0.07841,31816.0,31770.0,4.67238813]
[1610395938516,0.07841,31816.0,31758.0,0.10201]
[1610395938517,0.094,31815.0,31758.0,0.10201]
[1610395938717,1.0,31810.0,31794.0,1.0]
[1610395938918,1.0,31810.0,31797.0,4.2756]
[1610395939118,1.0,31810.0,31797.0,4.35896]
[1610395940522,1.0,31810.0,31809.0,0.13632608]
[1610395940722,0.07841,31816.0,31810.0,0.5865]
[1610395941123,2.84479349,31884.0,31809.0,0.13632608]
[1610395941324,0.276,31856.0,31820.0,5.2192]
[1610395942723,1.0,31831.0,31820.0,5.2192]
[1610395942923,1.07293,31831.0,31830.0,0.13632608]
[1610395943923,1.07293,31831.0,31815.0,1.0]
[1610395944123,0.13632608,31821.0,31815.0,1.0]
[1610395944325,0.09318,31821.0,31815.0,1.0]
[1610395944724,0.09318,31821.0,31811.0,3.8134]
[1610395944924,0.22950608,31821.0,31820.0,0.13632608]
[1610395945427,0.22950608,31821.0,31820.0,0.13441026]
[1610395946426,0.09318,31821.0,31820.0,0.13441026]
[1610395947427,0.07293,31831.0,31820.0,0.13441026]
[1610395947827,0.07293,31831.0,31820.0,0.0386304]
[1610395948029,0.13632608,31832.0,31811.0,3.8134]
[1610395948229,0.13632608,31832.0,31807.0,0.08945]
[1610395948629,0.11325,31832.0,31807.0,0.08945]
[1610395948831,0.00706297,31832.0,31807.0,0.08945]
[1610395949231,0.00706297,31832.0,31831.0,0.13632608]
[1610395950732,4.7073,31861.0,31831.0,0.13632608]
[1610395951133,4.7073,31861.0,31824.0,0.09178]
[1610395951333,0.09213,31843.0,31824.0,0.09178]
[1610395951535,0.11967049,31842.0,31824.0,0.09178]
[1610395951732,0.11967049,31842.0,31816.0,3.7522]
[1610395952734,1.0,31838.0,31822.0,1.0]
[1610395953034,1.0,31838.0,31834.0,0.13632608]
[1610395954035,1.0,31838.0,31822.0,1.0]
[1610395954637,0.11967049,31842.0,31820.0,0.125]
[1610395955035,0.11967049,31842.0,31840.0,0.13632608]
[1610395955636,0.11967049,31842.0,31832.0,3.6611]
[1610395956440,0.11967049,31842.0,31832.0,3.65918538]
[1610395956640,0.11967049,31842.0,31841.0,1.0]
[1610395957040,0.11967049,31842.0,31841.0,1.13632608]
[1610395958644,0.11967049,31842.0,31841.0,1.0]
[1610395958844,0.11967049,31842.0,31840.0,0.07382]
[1610395959244,0.11967049,31842.0,31841.0,0.13632608]
[1610395960645,0.11967049,31842.0,31841.0,1.13632608]
[1610395961646,0.11967049,31842.0,31841.0,5.44372608]
[1610395961847,0.11967049,31842.0,31841.0,5.3074]
[1610395962046,0.05097049,31842.0,31841.0,5.3074]
[1610395962449,0.05097049,31842.0,31841.0,1.0]
[1610395962647,0.05097049,31842.0,31840.0,0.07382]
[1610395962849,0.05097049,31842.0,31828.0,0.07417]
[1610395963047,0.05097049,31842.0,31825.0,4.9281]
[1610395963748,0.13632608,31836.0,31835.0,0.13632608]
[1610395963948,0.13632608,31836.0,31820.0,0.125]
[1610395964747,1.0,31822.0,31820.0,0.125]
[1610395965749,1.0,31822.0,31821.0,0.13632608]
[1610395966752,1.08513,31839.0,31821.0,1.13632608]
[1610395966952,0.83734143,31839.0,31821.0,1.13632608]
[1610395967151,0.0934,31902.0,31821.0,0.13632608]
[1610395967351,0.0934,31872.0,31821.0,0.13632608]
[1610395967752,0.0948,31853.0,31826.0,0.13632608]
[1610395968154,0.0948,31853.0,31820.0,0.36019688]
[1610395968956,0.094,31849.0,31820.0,0.36019688]
[1610395969157,0.0955,31846.0,31820.0,0.36019688]
[1610395969356,0.0941,31841.0,31820.0,0.36019688]
[1610395969755,4.322,31837.0,31820.0,0.36019688]
[1610395969955,4.41129,31837.0,31820.0,0.36019688]
[1610395970160,4.41129,31837.0,31820.0,0.35828136]
[1610395970355,0.13632608,31821.0,31820.0,0.35828136]
[1610395970755,0.22383608,31821.0,31820.0,0.35828136]
[1610395970955,0.22383608,31821.0,31820.0,0.12419136]
[1610395971155,0.22383608,31821.0,31739.0,0.0934]
[1610395971355,4.8485,31816.0,31768.0,5.0577]
[1610395972357,4.8485,31816.0,31782.0,0.13632608]
[1610395972559,0.0955,31815.0,31782.0,0.13632608]
[1610395972763,0.0955,31815.0,31756.0,0.07217]
[1610395972962,4.7657,31802.0,31756.0,0.07217]
[1610395973159,4.85569,31802.0,31756.0,0.07217]
[1610395973559,4.85569,31802.0,31753.0,5.0963]
[1610395974159,0.0954,31801.0,31753.0,5.0963]
[1610395974360,6.0,31781.0,31735.0,1.0]
[1610395974560,5.73100722,31781.0,31735.0,1.0]
[1610395974758,5.73100722,31781.0,31753.0,0.13632608]
[1610395974958,5.0,31767.0,31753.0,0.13632608]
[1610395975160,5.0,31767.0,31735.0,1.0]
[1610395975360,5.0964,31767.0,31735.0,1.0]
[1610395976761,5.0964,31767.0,31753.0,0.13632608]
[1610395976962,0.0964,31767.0,31728.0,5.2702]
[1610395977762,0.0964,31767.0,31683.0,1.0]
[1610395977966,0.0964,31767.0,31691.0,0.0949]
[1610395978162,0.0964,31767.0,31701.0,3.8665]
[1610395978563,0.0964,31767.0,31701.0,3.96385]
[1610395978763,0.0964,31767.0,31702.0,0.0942]
[1610395978962,0.0964,31767.0,31737.0,4.4652]
[1610395979364,0.0964,31767.0,31737.0,4.53577]
[1610395980267,0.0954,31777.0,31737.0,4.53577]
[1610395980465,0.0954,31777.0,31737.0,4.4652]
[1610395980664,0.13632608,31750.0,31748.0,0.13632608]
[1610395980864,0.07685,31750.0,31737.0,4.4652]
[1610395981263,0.07685,31750.0,31723.0,0.07546]
[1610395982665,0.07685,31750.0,31749.0,0.13632608]
[1610395983067,0.07685,31750.0,31723.0,0.07546]
[1610395984765,0.07685,31750.0,31748.0,0.13632608]
[1610395985967,4.074,31769.0,31753.0,0.40105967]
[1610395986768,0.13632608,31754.0,31753.0,0.40105967]
[1610395986969,1.13632608,31754.0,31753.0,0.40105967]
[1610395987768,0.93581002,31754.0,31753.0,0.40105967]
[1610395987969,0.08385,31755.0,31753.0,0.40105967]
[1610395988369,0.08385,31755.0,31748.0,0.13632608]
[1610395988771,0.08385,31755.0,31754.0,0.13632608]
[1610395988970,0.08385,31755.0,31748.0,0.37016109]
[1610395991874,4.074,31769.0,31748.0,0.37016109]
[1610395992074,1.0,31755.0,31748.0,0.37016109]
[1610395992273,1.08808,31755.0,31748.0,0.37016109]
[1610395992872,0.13632608,31752.0,31748.0,0.37016109]
[1610395993074,1.08808,31755.0,31748.0,0.37016109]
[1610395994074,0.08808,31755.0,31748.0,0.37016109]
[1610395996776,0.08808,31755.0,31749.0,0.13632608]
[1610395997577,4.074,31769.0,31749.0,0.13632608]
[1610395997779,0.2706,31779.0,31749.0,0.13632608]
[1610395998781,0.2706,31779.0,31756.0,0.13632608]
[1610395999481,0.7323,31778.0,31748.0,0.37016109]
[1610396000281,0.0954,31777.0,31748.0,0.37016109]
[1610396000881,0.13632608,31749.0,31748.0,0.37016109]
[1610396001681,0.07624,31754.0,31748.0,0.37016109]
[1610396002981,0.07624,31754.0,31753.0,0.13632608]
[1610396003181,0.07624,31754.0,31748.0,0.37016109]
[1610396004181,4.9971946,31765.0,31750.0,1.0]
[1610396004381,0.09235,31756.0,31750.0,1.0]
[1610396004982,0.09235,31756.0,31753.0,0.13632608]
[1610396009388,0.13632608,31766.0,31753.0,0.13632608]
[1610396010089,0.13632608,31766.0,31756.0,1.0]
[1610396010889,0.13632608,31766.0,31760.0,0.13632608]
[1610396012392,0.13632608,31766.0,31753.0,1.0]
[1610396012596,0.23496608,31766.0,31753.0,1.0]
[1610396012996,0.13632608,31754.0,31753.0,1.0]
[1610396013998,4.68492608,31754.0,31748.0,0.37016109]
[1610396014396,0.13632608,31754.0,31748.0,0.37016109]
[1610396014596,4.2873,31749.0,31748.0,0.37016109]
[1610396014798,4.36478,31749.0,31748.0,0.37016109]
[1610396014998,4.50110608,31749.0,31678.0,2.12797665]
[1610396015197,0.21380608,31749.0,31678.0,1.91597665]
[1610396015397,4.2121,31719.0,31678.0,1.91597665]
[1610396015597,4.40382,31719.0,31674.0,1.0]
[1610396015797,0.09792,31719.0,31674.0,1.0]
[1610396015997,0.09792,31719.0,31668.0,2.41610334]
[1610396015998,1.0,31698.0,31683.0,1.0]
[1610396016797,1.09652,31698.0,31683.0,1.0]
[1610396016999,4.1567,31684.0,31683.0,1.0]
[1610396017202,4.29302608,31684.0,31683.0,0.9556]
[1610396017598,4.29302608,31684.0,31651.0,0.13632608]
[1610396017799,4.1657,31668.0,31651.0,0.13632608]
[1610396017999,4.26193,31668.0,31631.0,2.41732248]
[1610396018400,3.76675823,31668.0,31631.0,2.41732248]
[1610396019001,3.76675823,31668.0,31623.0,4.2128]
[1610396019202,3.43446323,31668.0,31623.0,4.2128]
[1610396019399,1.0,31658.0,31643.0,1.0]
[1610396020504,0.75706956,31658.0,31643.0,1.0]
[1610396020900,0.10599,31660.0,31641.0,0.13632608]
[1610396021500,0.13632608,31643.0,31641.0,0.13632608]
[1610396021699,0.79609,31660.0,31641.0,0.13632608]
[1610396023103,0.0956,31659.0,31638.0,0.08989]
[1610396023704,0.0956,31659.0,31645.0,0.13632608]
[1610396024905,1.0,31656.0,31645.0,0.13632608]
[1610396025606,0.13632608,31646.0,31645.0,0.13632608]
[1610396026005,1.0,31656.0,31645.0,0.13632608]
[1610396026908,0.62518243,31660.0,31645.0,0.13632608]
[1610396027409,0.62518243,31660.0,31645.0,0.24841608]
[1610396027608,0.13632608,31646.0,31645.0,0.24841608]
[1610396028908,0.13632608,31646.0,31645.0,0.11209]
[1610396031815,4.56172608,31646.0,31645.0,0.11209]
[1610396032115,4.56172608,31646.0,31639.0,1.0]
[1610396032916,4.56172608,31646.0,31638.0,0.08989]
[1610396033118,4.56172608,31646.0,31618.0,5.1371]
[1610396033317,0.13632608,31646.0,31589.0,0.48112858]
[1610396033516,0.13632608,31646.0,31583.0,2.41153455]
[1610396033517,0.23869608,31646.0,31583.0,2.22466826]
[1610396033716,0.13632608,31608.0,31600.0,0.13632608]
[1610396033916,4.9332,31613.0,31581.0,4.1649]
[1610396034115,4.9332,31613.0,31581.0,4.23788]
[1610396034919,4.9332,31613.0,31604.0,1.0]
[1610396035116,4.9332,31613.0,31604.0,1.09028]
[1610396035618,0.13632608,31608.0,31604.0,1.09028]
[1610396036620,0.6457,31606.0,31604.0,1.09028]
[1610396036821,0.6457,31606.0,31604.0,0.09028]
[1610396037023,0.13632608,31608.0,31604.0,0.09028]
[1610396037426,0.13600971,31608.0,31604.0,0.09028]
[1610396037624,3.6575,31605.0,31598.0,1.0]
[1610396037824,0.13600971,31608.0,31598.0,1.0]
[1610396038026,5.0254,31599.0,31598.0,1.0]
[1610396038926,5.0254,31599.0,31581.0,0.07298]
[1610396038927,0.07989,31605.0,31581.0,0.07298]
[1610396039126,4.5547,31588.0,31557.0,4.1946]
[1610396039527,4.08627131,31588.0,31557.0,4.1946]
[1610396039727,4.08627131,31588.0,31562.0,0.13632608]
[1610396039929,4.08627131,31588.0,31562.0,0.11632608]
[1610396040127,4.08627131,31588.0,31562.0,0.19176608]
[1610396040529,0.3005,31604.0,31562.0,0.19176608]
[1610396040730,3.9736,31585.0,31562.0,0.19176608]
[1610396040929,5.1596,31577.0,31562.0,0.19176608]
[1610396041328,0.3005,31604.0,31562.0,0.19176608]
[1610396041730,0.3005,31604.0,31587.0,0.13632608]
[1610396041929,0.07291,31612.0,31587.0,0.10477]
[1610396042132,0.09105,31634.0,31587.0,0.10477]
[1610396042133,4.8466,31628.0,31587.0,0.10477]
[1610396043332,4.56963979,31628.0,31587.0,0.10477]
[1610396043532,0.2997,31633.0,31587.0,0.10477]
[1610396043732,0.2997,31633.0,31615.0,0.13632608]
[1610396043933,0.2997,31633.0,31615.0,0.24064608]
[1610396044334,0.094,31660.0,31615.0,0.24064608]
[1610396044533,0.1876,31664.0,31618.0,3.9642]
[1610396044934,1.0,31656.0,31640.0,1.0]
[1610396045735,1.0,31656.0,31655.0,0.13632608]
[1610396045933,1.0,31656.0,31655.0,0.21589608]
[1610396046334,1.0,31656.0,31655.0,0.07957]
[1610396046736,0.7312,31656.0,31655.0,0.07957]
[1610396046936,0.273,31681.0,31655.0,6.07957]
[1610396047135,1.0,31690.0,31660.0,3.5844]
[1610396047738,0.0097,31683.0,31682.0,0.13632608]
[1610396047936,0.007,31683.0,31682.0,0.22920608]
[1610396048136,0.0051,31683.0,31682.0,0.22920608]
[1610396048736,1.0,31690.0,31682.0,0.22920608]
[1610396048940,0.2951,31729.0,31682.0,0.22920608]
[1610396049737,0.2951,31729.0,31709.0,0.13632608]
[1610396050138,4.293,31736.0,31709.0,0.13632608]
[1610396050341,4.293,31736.0,31707.0,0.09548]
[1610396050539,4.36514,31736.0,31707.0,0.09548]
[1610396050739,0.07214,31736.0,31707.0,0.09355807]
[1610396050940,1.0,31716.0,31707.0,0.09355807]
[1610396051841,0.13632608,31708.0,31707.0,0.09355807]
[1610396052039,0.13632608,31708.0,31700.0,1.0]
[1610396052240,0.13632608,31708.0,31700.0,4.8929]
[1610396052440,1.0,31716.0,31700.0,4.8929]
[1610396052640,1.0,31716.0,31700.0,4.98757]
[1610396053041,1.0,31724.0,31708.0,1.0]
[1610396054243,0.13632608,31709.0,31708.0,1.0]
[1610396055044,1.13632608,31709.0,31700.0,0.09467]
[1610396055447,1.13632608,31709.0,31693.0,0.13632608]
[1610396055645,1.0,31709.0,31693.0,0.13632608]
[1610396056046,1.0,31709.0,31692.0,1.0]
[1610396056547,1.0,31709.0,31708.0,0.13632608]
[1610396056949,4.9619,31725.0,31708.0,1.22978608]
[1610396057149,1.0,31735.0,31708.0,1.22978608]
[1610396057750,1.0,31735.0,31708.0,1.09346]
[1610396058151,4.8132,31728.0,31708.0,1.09346]
[1610396058351,4.89143,31728.0,31708.0,1.09346]
[1610396058752,0.13632608,31709.0,31708.0,1.09346]
[1610396058954,0.13632608,31709.0,31708.0,0.09346]
[1610396059153,0.13632608,31709.0,31701.0,0.10844]
[1610396060155,0.0719,31720.0,31708.0,0.23677086]
[1610396060757,0.13632608,31715.0,31711.0,0.13632608]
[1610396060956,0.13632608,31715.0,31708.0,0.23677086]
[1610396061758,5.0344,31712.0,31708.0,0.23677086]
[1610396061956,5.0344,31712.0,31708.0,0.21277086]
[1610396062157,0.0719,31720.0,31708.0,0.21277086]
[1610396062358,0.0719,31720.0,31708.0,0.21084908]
[1610396062757,0.0719,31720.0,31708.0,0.11474264]
[1610396062758,0.13632608,31709.0,31708.0,0.11474264]
[1610396067159,0.0719,31720.0,31708.0,0.11474264]
[1610396067359,4.8665,31730.0,31708.0,0.11474264]
[1610396069361,0.13632608,31709.0,31708.0,0.11474264]
[1610396069963,4.1147,31709.0,31679.0,4.76557]
[1610396070161,0.09189,31712.0,31626.0,2.22773382]
[1610396070363,4.7148,31696.0,31657.0,4.5404]
[1610396070561,4.78696,31696.0,31657.0,4.5404]
[1610396070964,4.78696,31696.0,31695.0,1.0]
[1610396071163,0.07216,31696.0,31695.0,1.0]
[1610396071565,1.0,31710.0,31695.0,1.0]
[1610396071965,0.13632608,31707.0,31706.0,0.13632608]
[1610396072164,0.13632608,31707.0,31695.0,1.0]
[1610396073066,0.13632608,31707.0,31682.0,0.10232]
[1610396073667,0.09189,31712.0,31682.0,0.10232]
[1610396074068,0.13632608,31705.0,31703.0,0.13632608]
[1610396074268,0.08813167,31712.0,31682.0,0.10232]
[1610396074671,4.6867,31716.0,31682.0,0.10232]
[1610396075472,4.69770668,31716.0,31680.0,3.9412]
[1610396075669,4.79120668,31716.0,31680.0,3.9412]
[1610396075870,0.00321056,31715.0,31680.0,3.9412]
[1610396076073,0.00321056,31715.0,31695.0,0.13632608]
[1610396076271,0.01100585,31715.0,31695.0,0.13632608]
[1610396076673,4.75702,31716.0,31695.0,0.13440369]
[1610396077073,1.0,31711.0,31695.0,1.13440369]
[1610396078176,1.0,31711.0,31710.0,0.13632608]
[1610396078778,1.0,31711.0,31695.0,1.0]
[1610396078979,4.75702,31716.0,31705.0,1.0]
[1610396080078,4.85172,31716.0,31705.0,1.0]
[1610396080685,0.13632608,31706.0,31705.0,1.0]
[1610396080880,0.22685608,31706.0,31705.0,0.90388467]
[1610396081081,0.22685608,31706.0,31679.0,0.13632608]
[1610396081082,6.44615608,31706.0,31679.0,0.13632608]
[1610396082181,0.0933,31705.0,31679.0,0.13632608]
[1610396082383,0.0933,31705.0,31676.0,5.0676]
[1610396082583,0.0933,31705.0,31684.0,0.13632608]
[1610396083185,1.0,31690.0,31684.0,0.13632608]
[1610396083384,1.07024,31690.0,31684.0,0.13632608]
[1610396083585,1.07024,31690.0,31674.0,1.0]
[1610396083586,3.92,31688.0,31674.0,1.0]
[1610396084587,0.13632608,31675.0,31674.0,1.0]
[1610396084785,0.24715608,31675.0,31674.0,1.0]
[1610396085186,0.24715608,31675.0,31659.0,0.13632608]
[1610396085385,0.24715608,31675.0,31648.0,4.7352]
[1610396085585,0.24715608,31675.0,31606.0,2.46423105]
[1610396085787,3.7648,31656.0,31606.0,2.24593105]
[1610396085987,3.7648,31656.0,31602.0,2.24603865]
[1610396086589,3.7648,31656.0,31641.0,0.13632608]
[1610396087189,1.0,31653.0,31641.0,0.13632608]
[1610396088492,1.0,31653.0,31638.0,1.0]
[1610396088696,0.13632608,31642.0,31638.0,1.0]
[1610396088892,0.7228,31639.0,31638.0,1.0]
[1610396089092,0.7228,31639.0,31625.0,1.0]
[1610396089293,1.0,31640.0,31625.0,1.0]
[1610396089494,4.6446,31628.0,31625.0,1.0]
[1610396090494,4.75369,31628.0,31625.0,1.0]
[1610396090693,0.13632608,31626.0,31625.0,1.0]
[1610396091198,0.13632608,31626.0,31618.0,1.0]
[1610396092196,4.4176,31619.0,31618.0,1.0]
[1610396092396,4.48808,31619.0,31618.0,1.0]
[1610396092595,4.48808,31619.0,31618.0,0.9067]
[1610396092795,4.62440608,31619.0,31618.0,0.9067]
[1610396092996,5.62440608,31619.0,31602.0,0.43539026]
[1610396093194,1.20680608,31619.0,31602.0,0.43539026]
[1610396093396,3.7707,31605.0,31602.0,0.43539026]
[1610396093595,3.84527,31605.0,31602.0,0.43539026]
[1610396094797,0.13632608,31603.0,31602.0,0.43539026]
[1610396095399,0.07457,31605.0,31602.0,0.43539026]
[1610396095602,1.0,31613.0,31602.0,0.43539026]
[1610396096603,1.0,31613.0,31602.0,0.52757026]
[1610396096803,1.0,31613.0,31612.0,0.13632608]
[1610396097004,0.07048,31619.0,31612.0,0.13632608]
[1610396097204,3.6368,31627.0,31612.0,0.24289608]
[1610396097405,0.2891,31648.0,31612.0,0.24289608]
[1610396097606,3.6044,31641.0,31612.0,0.24289608]
[1610396098706,0.0961,31640.0,31620.0,0.13632608]
[1610396098909,0.20166,31640.0,31612.0,0.10657]
[1610396099105,0.20166,31640.0,31602.0,0.52757026]
[1610396099106,3.9215,31624.0,31602.0,0.03397026]
[1610396099305,0.11051,31624.0,31600.0,0.125]
[1610396099506,4.2158,31607.0,31600.0,0.125]
[1610396099713,4.26639,31607.0,31600.0,0.125]
[1610396100707,0.13632608,31601.0,31600.0,0.125]
[1610396100906,1.13632608,31601.0,31600.0,0.125]
[1610396101509,1.76292608,31601.0,31600.0,0.125]
[1610396101908,1.6266,31601.0,31600.0,0.125]
[1610396102709,1.24257145,31601.0,31600.0,0.125]
[1610396102911,0.6266,31601.0,31600.0,0.125]
[1610396103109,0.76292608,31601.0,31600.0,0.125]
[1610396105212,0.76292608,31601.0,31600.0,0.0648]
[1610396105613,0.76292608,31601.0,31591.0,0.9671]
[1610396106013,1.76292608,31601.0,31574.0,1.0]
[1610396107013,1.6266,31601.0,31583.0,0.13632608]
[1610396107514,1.43427415,31601.0,31583.0,0.13632608]
[1610396107713,1.52877415,31601.0,31580.0,0.10899]
[1610396107915,0.43427415,31601.0,31580.0,0.10899]
[1610396108215,0.08059,31607.0,31580.0,0.10899]
[1610396108414,4.1605,31595.0,31580.0,0.10899]
[1610396109020,4.1605,31595.0,31561.0,5.038]
[1610396109623,0.0955,31594.0,31561.0,5.038]
[1610396110223,0.0955,31594.0,31539.0,7.4752]
[1610396110224,0.0955,31594.0,31518.0,2.22728579]
[1610396110430,0.0955,31594.0,31515.0,2.22526938]
[1610396110635,4.2727,31583.0,31520.0,3.9599]
[1610396110826,4.34859,31583.0,31520.0,3.9599]
[1610396111229,4.34859,31583.0,31545.0,0.13632608]
[1610396111423,4.34859,31583.0,31545.0,0.24610608]
[1610396111628,0.2838,31582.0,31545.0,0.10978]
[1610396111817,0.3792,31582.0,31545.0,0.10978]
[1610396112234,0.2838,31582.0,31545.0,0.10978]
[1610396112445,0.2838,31582.0,31549.0,4.4773]
[1610396112636,0.0938,31582.0,31549.0,4.4773]
[1610396113020,0.2758,31593.0,31549.0,4.4773]
[1610396113230,0.13632608,31591.0,31583.0,0.13632608]
[1610396114017,0.13632608,31591.0,31569.0,4.6964]
[1610396115220,0.13632608,31591.0,31587.0,0.13632608]
[1610396115418,0.13632608,31591.0,31587.0,0.11174]
[1610396116419,0.13632608,31591.0,31576.0,0.11029]
[1610396116621,0.2758,31593.0,31576.0,0.11029]
[1610396117221,0.13632608,31590.0,31589.0,0.13632608]
[1610396117621,0.13632608,31590.0,31576.0,0.11029]
[1610396117820,0.13632608,31590.0,31582.0,1.0]
[1610396119324,0.13632608,31583.0,31582.0,1.0]
[1610396119824,0.13632608,31583.0,31576.0,0.11029]
[1610396120221,0.13632608,31583.0,31560.0,4.7695]
[1610396120423,0.13632608,31583.0,31524.0,0.0962]
[1610396120622,0.13632608,31583.0,31543.0,0.0964]
[1610396121023,4.2426,31589.0,31543.0,0.0964]
[1610396121222,0.04089,31608.0,31543.0,0.17715]
[1610396121422,0.9694214,31634.0,31607.0,0.13632608]
[1610396121623,1.0,31632.0,31612.0,3.5422]
[1610396121822,1.08404,31632.0,31612.0,3.5422]
[1610396122934,1.0,31632.0,31612.0,3.5422]
[1610396123327,1.0,31632.0,31631.0,0.13632608]
[1610396123724,0.13632608,31636.0,31631.0,0.13632608]
[1610396123925,0.11208,31646.0,31631.0,0.13632608]
[1610396124126,0.11208,31646.0,31631.0,0.03998378]
[1610396124526,0.01513181,31663.0,31631.0,0.03998378]
[1610396124929,0.01522108,31675.0,31631.0,0.03998378]
[1610396125327,0.13632608,31634.0,31631.0,0.03998378]
[1610396125730,0.13632608,31634.0,31629.0,4.6323]
[1610396126127,0.08568,31661.0,31629.0,4.6323]
[1610396127330,0.13632608,31640.0,31639.0,0.13632608]
[1610396128831,0.08568,31661.0,31639.0,0.13632608]
[1610396129032,0.08568,31661.0,31644.0,3.9817]
[1610396129232,0.01532929,31678.0,31644.0,3.9817]
[1610396129430,0.01532929,31678.0,31660.0,0.13632608]
[1610396129631,1.0,31670.0,31660.0,0.13632608]
[1610396130033,1.0,31670.0,31660.0,0.13440113]
[1610396131032,1.0,31670.0,31655.0,1.729]
[1610396131433,1.0,31670.0,31665.0,0.13632608]
[1610396131634,1.0,31678.0,31665.0,0.13632608]
[1610396131833,1.0,31678.0,31666.0,3.7492]
[1610396132634,1.0,31678.0,31663.0,0.08598]
[1610396132838,1.18552,31678.0,31663.0,0.08598]
[1610396133035,1.09162,31678.0,31662.0,1.0]
[1610396133436,0.13632608,31663.0,31662.0,1.0]
[1610396133636,0.13632608,31663.0,31661.0,0.13632608]
[1610396133637,0.13632608,31663.0,31661.0,1.13632608]
[1610396134436,0.94632608,31676.0,31661.0,1.0]
[1610396134637,0.94632608,31676.0,31661.0,1.09735]
[1610396134837,0.0695,31686.0,31662.0,1.0]
[1610396135236,1.0,31687.0,31662.0,1.0]
[1610396135440,1.0,31687.0,31686.0,0.13632608]
[1610396135638,1.0,31687.0,31686.0,5.16742608]
[1610396135838,1.0,31687.0,31686.0,5.28079608]
[1610396136039,0.801,31687.0,31686.0,5.28079608]
[1610396136438,0.13632608,31695.0,31686.0,0.24969608]
[1610396137038,0.13632608,31695.0,31686.0,0.83329608]
[1610396137240,0.49393489,31705.0,31686.0,0.69697]
[1610396137640,0.01610397,31706.0,31694.0,0.13632608]
[1610396138140,0.01613572,31707.0,31686.0,0.69697]
[1610396138346,1.0,31702.0,31686.0,1.69697]
[1610396138841,1.0,31702.0,31686.0,2.06394519]
[1610396139641,1.0,31702.0,31700.0,0.13632608]
[1610396140341,1.07163,31711.0,31700.0,0.13632608]
[1610396140743,1.0,31711.0,31700.0,0.13632608]
[1610396141142,0.83122019,31711.0,31700.0,0.13632608]
[1610396141441,1.0,31711.0,31700.0,0.13632608]
[1610396141642,0.13632608,31701.0,31700.0,0.13440335]
[1610396142944,1.0,31711.0,31702.0,3.9983]
[1610396143544,0.4991063,31718.0,31704.0,1.0]
[1610396143743,0.13632608,31712.0,31710.0,0.13632608]
[1610396144145,0.13632608,31712.0,31711.0,0.7369]
[1610396144443,0.49856811,31717.0,31711.0,0.7369]
[1610396144644,0.49856811,31717.0,31715.0,3.8485]
[1610396144844,1.50073637,31720.0,31715.0,3.8485]
[1610396145246,1.0,31720.0,31715.0,3.94054]
[1610396145446,0.01632571,31722.0,31719.0,1.0]
[1610396145650,0.01632571,31722.0,31721.0,0.13632608]
[1610396145845,0.01632571,31722.0,31721.0,0.85312608]
[1610396146045,0.50201357,31727.0,31721.0,0.7168]
[1610396146446,0.01634786,31729.0,31721.0,0.52461497]
[1610396146848,0.15267534,31731.0,31721.0,0.52461497]
[1610396147348,0.01634205,31732.0,31730.0,5.0487]
[1610396147747,0.01631725,31737.0,31731.0,0.13632608]
[1610396148148,0.01633638,31743.0,31731.0,0.13632608]
[1610396148550,0.0954,31742.0,31731.0,0.04027514]
[1610396148749,0.5827535,31755.0,31731.0,0.04027514]
[1610396148949,0.5827535,31755.0,31730.0,5.14162]
[1610396149349,0.58300249,31756.0,31730.0,5.14162]
[1610396149950,0.6546464,31757.0,31738.0,0.13632608]
[1610396150149,0.6546464,31757.0,31740.0,0.5733]
[1610396150349,0.07214,31757.0,31738.0,0.13632608]
[1610396150549,0.07214,31757.0,31749.0,4.6959]